{"text_format":"1","workbook":"xlsx","n_sheets":1,"sheets":["Evaluación Perfil de Riesgo"],"not_rendered":{"charts":0,"images":1,"macros":1,"external_links":0,"defined_names":1,"comments":0,"pivot_tables":0},"unopened":[],"bounds":{"document_bytes":16777216,"sheet_cells":100000,"rows_first":2000,"rows_last":500,"rows_between":2000,"halvings":0,"cell_chars":16384,"cell_head_chars":4096},"cells_cut":0,"cells_raw":0,"read":"whole","date_system":"1900"}

{"sheet":"Evaluación Perfil de Riesgo","index":0,"n_rows":54,"n_cols":11,"rows_kept":54,"cut":false,"hidden":false,"merged":[[53,3,54,5],[5,2,5,6],[48,3,50,4],[0,2,4,6]]}
[null,null,"\nTEST PARA DETERMINAR EL PERFIL DE RIESGO DE INVERSIONISTA"]
[null,null,null,null,null,null,null,null,null,"Invertiría todo mi dinero en instrumentos con poco riesgo, aunque su rentabilidad sea baja."]
[null,null,null,null,null,null,null,null,null,"Invertiría una parte de mi dinero en instrumentos de bajo riesgo y otra, en aquellos que aunque son más riesgosos, tienen mayor rentabilidad"]
[null,null,null,null,null,null,null,null,null,"Invertiría todo mi dinero en instrumentos de alto rendimiento para maximizar mi ganancia, aún cuando esto signifique asumir mayores riesgos."]
[null,"% Total peso ponderado"]
[null,{"$f":"SUM(B9,B13,B17,B21,B25,B29,B33,B37,B41,B45)","v":0.99999999999999989},"Ítem a evaluar"]
[]
[null,"Valor del dominio",null,"Seleccione su tramo de edad",null,{"$f":"IF(E8=\"\",\"\",IF(E8=\"Más de 56 años.\",1,IF(E8=\"Entre 46 y 55 años.\",2,IF(E8=\"Menos de 45 años.\",3,(IF(E8=\"NA\",\"\",0))))))","v":""},null,null,null,{"$f":"SUM(F8,F12,F16,F20,F24,F28,F32,F36,F40,F44)","v":0},{"$f":"IF(J8=0,\"\",IF(J8<=10,J11,IF(J8<=20,J12,J15)))","v":""}]
[null,0.1]
[null,null,null,null,{"$f":"COUNTIF(E8:E9,\"NA\")","v":0},{"$f":"(COUNTA(E8:E9)-E10)","v":0}]
[null,null,null,null,null,null,null,null,null,"Conservador","Este inversionista se caracteriza por evitar el riesgo. Por lo tanto, escoge instrumentos de inversión que le den la garantía de que no perderá parte o todo el dinero que invertirá. No le importa que las ganancias obtenidas sean bajas."]
[null,"Valor del dominio",null,"¿A qué plazo le gustaría invertir? En otras palabras, ¿cuánto tiempo está dispuesto a esperar para obtener una ganancia de su inversión?",null,{"$f":"IF(E12=\"\",\"\",IF(E12=\"Menos de 1 año.\",1,IF(E12=\"De 1 a 5 años.\",2,IF(E12=\"Más de 5 años.\",3,(IF(E12=\"NA\",\"\",0))))))","v":""},null,null,null,"Moderado","Este inversionista es cauteloso con sus decisiones, pero está dispuesto a tolerar un riesgo moderado para aumentar sus ganancias. Procura mantener un balance entre rentabilidad y seguridad."]
[null,0.1]
[null,null,null,null,{"$f":"COUNTIF(E12:E13,\"NA\")","v":0},{"$f":"(COUNTA(E12:E13)-E14)","v":0}]
[null,null,null,null,null,null,null,null,null,"Agresivo","Busca los mayores rendimientos posibles, por lo que está dispuesto a asumir el riesgo que sea necesario. Esta clase de inversionistas corre riesgos en los mercados y opta por los instrumentos que prometen las ganancias más elevadas, sin importar si en un momento dado se arriesga a perder la mayor parte de la inversión. Este tipo de personas prefieren portafolios de inversión en los que combinan fondos de capitalización, deuda a corto plazo y deuda a largo plazo"]
[null,"Valor del dominio",null,"¿Cuánto de sus ahorros estaría dispuesto a invertir?",null,{"$f":"IF(E16=\"\",\"\",IF(E16=\"Menos del 30%. \",1,IF(E16=\"Entre 30% y 60%. \",2,IF(E16=\"Más del 60%.\",3,(IF(E16=\"NA\",\"\",0))))))","v":""}]
[null,0.1]
[null,null,null,null,{"$f":"COUNTIF(E16:E17,\"NA\")","v":0},{"$f":"(COUNTA(E16:E17)-E18)","v":0}]
[]
[null,"Valor del dominio",null,"¿Cuál es su principal objetivo?",null,{"$f":"IF(E20=\"\",\"\",IF(E20=\"Asegurar y mantener su capital. \",1,IF(E20=\"Aumentar su patrimonio con retornos estables. \",2,IF(E20=\"Que su dinero crezca sin importar los riesgos.\",3,(IF(E20=\"NA\",\"\",0))))))","v":""}]
[null,0.1]
[null,null,null,null,{"$f":"COUNTIF(E20:E21,\"NA\")","v":0},{"$f":"(COUNTA(E20:E21)-E22)","v":0}]
[]
[null,"Valor del dominio",null,"¿Cómo generó el dinero que desea invertir?",null,{"$f":"IF(E24=\"\",\"\",IF(E24=\"Básicamente mediante su trabajo. \",1,IF(E24=\"Mediante su trabajo y algunos ahorros. \",2,IF(E24=\"De otras rentas no relacionadas con su trabajo.\",3,(IF(E24=\"NA\",\"\",0))))))","v":""}]
[null,0.1]
[null,null,null,null,{"$f":"COUNTIF(E24:E25,\"NA\")","v":0},{"$f":"(COUNTA(E24:E25)-E26)","v":0}]
[]
[null,"Valor del dominio",null,"¿Cómo describiría su grado de conocimiento en inversiones?",null,{"$f":"IF(E28=\"\",\"\",IF(E28=\"bajo \",1,IF(E28=\"medio\",2,IF(E28=\"alto\",3,(IF(E28=\"NA\",\"\",0))))))","v":""}]
[null,0.1]
[null,null,null,null,{"$f":"COUNTIF(E28:E29,\"NA\")","v":0},{"$f":"(COUNTA(E28:E29)-E30)","v":0}]
[]
[null,"Valor del dominio",null,"¿Qué frase lo identifica mejor con respecto a las inversiones?",null,{"$f":"IF(E32=\"\",\"\",IF(E32=\"Invertiría todo mi dinero en instrumentos con poco riesgo, aunque su rentabilidad sea baja.\",1,IF(E32=\"Invertiría una parte de mi dinero en instrumentos de bajo riesgo y otra, en aquellos que aunque son más riesgosos, tienen mayor rentabilidad\",2,IF(E32=\"Invertiría todo mi dinero en instrumentos de alto rendimiento para maximizar mi ganancia, aún cuando esto signifique asumir mayores riesgos.\",3,(IF(E32=\"NA\",\"\",0))))))","v":""}]
[null,0.1]
[null,null,null,null,{"$f":"COUNTIF(E32:E33,\"NA\")","v":0},{"$f":"(COUNTA(E32:E33)-E34)","v":0}]
[]
[null,"Valor del dominio",null,"Si su inversión comienza a perder valor, ¿qué haría?",null,{"$f":"IF(E36=\"\",\"\",IF(E36=\"Vendería inmediatamente. \",1,IF(E36=\"Consultaría a un experto. \",2,IF(E36=\"Asumiría las pérdidas en el corto plazo y esperaría obtener ganancias en el largo plazo.\",3,(IF(E36=\"NA\",\"\",0))))))","v":""}]
[null,0.1]
[null,null,null,null,{"$f":"COUNTIF(E36:E37,\"NA\")","v":0},{"$f":"(COUNTA(E36:E37)-E38)","v":0}]
[]
[null,"Valor del dominio",null,"La palabra riesgo para usted significa:",null,{"$f":"IF(E40=\"\",\"\",IF(E40=\"Alerta\",1,IF(E40=\"Inseguridad\",2,IF(E40=\"Oportunidad\",3,(IF(E40=\"NA\",\"\",0))))))","v":""}]
[null,0.1]
[null,null,null,null,{"$f":"COUNTIF(E40:E41,\"NA\")","v":0},{"$f":"(COUNTA(E40:E41)-E42)","v":0}]
[]
[null,"Valor del dominio",null,"¿Cómo espera que evolucione su capacidad de ahorro en los próximos años?",null,{"$f":"IF(E44=\"\",\"\",IF(E44=\"Disminuirá\",1,IF(E44=\"Se mantendrá\",2,IF(E44=\"Aumentará\",3,(IF(E44=\"NA\",\"\",0))))))","v":""}]
[null,0.1]
[null,null,null,null,{"$f":"COUNTIF(E44:E45,\"NA\")","v":0},{"$f":"(COUNTA(E44:E45)-E46)","v":0}]
[]
[]
[null,null,null,"Resultado de la Evalución de Perfil de Riesgos"]
[]
[]
[]
[null,null,null,"SU PERFIL ES:                                                       ",{"$f":"K8","v":""}]
[null,null,null,{"$f":"IF(E53=\"\",\"\",IF(E53=J11,K11,IF(E53=J12,K12,K15)))","v":""}]